Cogmind - Beta 17 @@@ ROGUE MODE // 2026.07.12 @ 11:58:01 Player: Scared Dad Result: Destroyed by Y-45 Defender with Heavy Assault Rifle Performance ------------- Evolutions (0) 0 Regions Visited (2) 400 Robots Destroyed (18) 90 Value Destroyed (505) 505 Prototype IDs (0) 0 Alien Tech Used (0) 0 Bonus (0) 0 TOTAL SCORE: 995 Bonus ------- None Cogmind --------- Core Integrity 0/250 Matter 242/300 Energy 243/250 System Corruption 1% Temperature Cool (9) Movement Treading (160) Location -10/Mines Parts ------- > --- POWER (1) -------- Ion Engine > --- PROPULSION (2) --- Light Treads Light Treads > --- UTILITY (2) ------ Heat Sink Medium Storage Unit > --- WEAPON (2) ------- Light Assault Rifle Slug Cannon > --- INVENTORY (10) --- Aluminum Leg Aluminum Leg Small Storage Unit Signal Interpreter Small Laser Light Assault Rifle Grenade Launcher Grenade Launcher Mining Laser Peak State ------------ > --- POWER ------------ Ion Engine > --- PROPULSION ------- Light Treads Light Treads > --- UTILITY ---------- Heat Sink Medium Storage Unit > --- WEAPON ----------- Assault Rifle Slug Cannon > --- INVENTORY -------- Aluminum Leg Aluminum Leg Small Storage Unit Signal Interpreter Small Laser Light Assault Rifle Light Assault Rifle Grenade Launcher Grenade Launcher Mining Laser [Rating: 11] Favorites ----------- Power Ion Engine Engine Ion Engine Propulsion Aluminum Leg Treads Light Treads Leg Aluminum Leg Wheel Wheel Utility Small Storage Unit Device Heat Sink Storage Small Storage Unit Processor Targeting Computer Weapon Light Assault Rifle Ballistic Gun Light Assault Rifle Ballistic Cannon Slug Cannon Build | -11 -10 -10 ------- Run | Yrd Mat Min Slots Evolved . | . . . Power . | . . . Propulsion . | . . . Utility . | . . . Weapon . | . . . Parts Attached 25 | 6 14 5 Power 5 | 1 3 1 Engine 5 | 1 3 1 Core . | . . . Reactor . | . . . Propulsion 8 | 2 4 2 Treads 2 | . . 2 Leg 4 | . 4 . Wheel 2 | 2 . . Hover . | . . . Flight . | . . . Utility 4 | 1 2 1 Device 1 | . . 1 Storage 2 | 1 1 . Processor 1 | . 1 . Hackware . | . . . Protection . | . . . Artifact . | . . . Weapon 8 | 2 5 1 Energy Gun . | . . . Energy Cannon . | . . . Ballistic Gun 7 | 2 5 . Ballistic Cannon 1 | . . 1 Launcher . | . . . Special Weapon . | . . . Impact Weapon . | . . . Slashing Weapon . | . . . Piercing Weapon . | . . . Special Melee Weapon . | . . . Unidentified Prototypes . | . . . Parts Lost 6 | . 4 2 Power 1 | . . 1 Propulsion 2 | . 2 . Utility 1 | . 1 . Weapon 2 | . 1 1 Highest Loss Streak 2 | . 2 1 To Critical Strikes . | . . . Average Backups 8 | 3 7 9 Power . | . . . Propulsion 3 | 1 3 3 Utility 2 | . 2 2 Weapon 1 | 1 . 4 Tool/Special . | . . . Unused Backups 9 | . 1 8 Power . | . . . Propulsion 3 | . . 3 Utility 1 | . . 1 Weapon 4 | . . 4 Tool/Special 1 | . 1 . Average Slot Usage (%) 92 | . 89 98 Engine 13 | . 14 13 Treads 8 | . . 27 Leg 15 | . 21 . Wheel 4 | . 6 . Device 4 | . . 13 Storage 14 | . 14 14 Processor 3 | . 4 . Ballistic Gun 26 | . 27 25 Peak Build Rating 11 | 6 7 11 Average Rating 6 | 4 6 8 On Entrance 4 | . 6 7 Avg Prop Armor Cover (%) . | . . . Naked Turns . | . . . Heaviest Build 25 | 12 18 25 Greatest Support 40 | 26 26 40 Greatest Overweight (x) 1 | . 1 . Average Overweight (x) . | . . . Largest Inventory Capacity 10 | 8 10 10 Average Capacity 8 | 7 8 10 Most Carried 10 | 7 10 10 Average Carried 8 | 3 8 9 Final Capacity 10 | 8 10 10 Final Carried 10 | 6 10 9 Class Distribution -------------------- 100% | Mutant Dominant Class ---------------- Mutant | -10/Materials Mutant | -10/Mines Resources | -11 -10 -10 ----------- Run | Yrd Mat Min Matter Collected 603 | 162 358 83 Remotely . | . . . Salvage Created 614 | . 478 136 Parts 39 | . 31 8 Haulers Intercepted . | . . . Recyclers Shooed . | . . . Parts Field Recycled . | . . . Retrieved Matter . | . . . Parts Self-Destructed . | . . . Prevented . | . . . Parts Restored . | . . . Kills | -11 -10 -10 ------- Run | Yrd Mat Min Combat Hostiles Destroyed 18 | . 15 3 Guns 17 | . 15 2 Cannons 1 | . . 1 Classes Destroyed 3 | . 2 1 Swarmer 6 | . 6 . Grunt 11 | . 9 2 Sentry 1 | . . 1 Best Kill Streak 4 | . 4 2 Combat Bots Only 4 | . 4 2 Max Kills in Single Turn 1 | . 1 1 Gunslinging . | . . . Exploded . | . . . Melee . | . . . Uniques/NPCs Destroyed . | . . . Combat | -11 -10 -10 -------- Run | Yrd Mat Min Hostile Shots Fired 126 | . 97 29 Missed 37 | . 29 8 Hits 89 | . 68 21 Projectile 89 | . 68 21 Critical Strikes 2 | . 1 1 Damage Taken 1122 | . 815 307 Core 255 | . 198 57 Absorbed by Shields . | . . . Core Remaining (%) 100 | 100 . . Volleys Fired 78 | . 65 13 Largest 2 | . 2 2 Hottest 60 | . 40 60 Shots Fired 149 | . 123 26 Gun 144 | . 123 21 Cannon 5 | . . 5 Launcher . | . . . Special . | . . . Kinetic 149 | . 123 26 Thermal . | . . . Explosive . | . . . Electromagnetic . | . . . Robot Hit Streak 12 | . 12 10 Robot Miss Streak 6 | . 6 4 Penetration Max . | . . . Secondary Targets 1 | . . 1 Max Gunslinging Chain 1 | . . 1 Shots Hit Robots 98 | . 80 18 Core Hits 44 | . 38 6 Critical Kills 1 | . 1 . Critical Parts Destroyed . | . . . Critical Strikes 1 | . 1 . Destroy 1 | . 1 . Melee Attacks . | . . . Impact . | . . . Slashing . | . . . Piercing . | . . . Sneak Attacks . | . . . Combat Hostiles . | . . . Follow-up Attacks . | . . . Damage Inflicted 1001 | . 757 244 Guns 910 | . 745 165 Cannons 79 | . . 79 Explosions . | . . . Melee . | . . . Ramming 12 | . 12 . Kinetic 989 | . 745 244 Thermal . | . . . Explosive . | . . . Electromagnetic . | . . . Impact . | . . . Slashing . | . . . Piercing . | . . . Highest Corruption 1 | . 1 1 Average Corruption 1 | . 1 1 Corruption Purged . | . . . Corruption Blocked . | . . . Effects 11 | . 8 3 Message Errors 4 | . 3 1 Matter Fused 4 | . 3 1 Heat Flow Errors 1 | . . 1 Data Loss (minor) 1 | . 1 . Data Loss (major) 1 | . 1 . Overload Shots . | . . . Overflow Damage . | . . . Projectiles . | . . . Explosions . | . . . Melee . | . . . Knockbacks . | . . . Impact . | . . . Kinetic . | . . . Secondary . | . . . Self-Inflicted Damage . | . . . Shots . | . . . Rammed 2 | . 2 . Targets Rammed 6 | . 6 . Kicked 4 | . 4 . Crushed . | . . . Highest Temperature 110 | . 22 110 Average Temperature 10 | . 7 55 Received Heat Transfer 561 | . 414 147 Siege Activations . | . . . Martial Activations . | . . . Shielding Activations . | . . . Robots Disrupted . | . . . Combat Hostiles . | . . . Robots Corrupted . | . . . Combat Hostiles . | . . . Parts Fried . | . . . Impact Corruptions . | . . . Robots Melted . | . . . Combat Hostiles . | . . . Parts Melted . | . . . Heat Transferred . | . . . Parts Sabotaged . | . . . Parts Stolen . | . . . Parts Stripped . | . . . Power Chain Reactions . | . . . Alert | -11 -10 -10 ------- Run | Yrd Mat Min Maximum Alert Level . | . . . Low Security (%) 100 | 100 100 100 Level 1 . | . . . Level 2 . | . . . Level 3 . | . . . Level 4 . | . . . Level 5 . | . . . High Security . | . . . Max Security . | . . . Peak Influence 138 | . 138 50 Initial 1 | . . 1 Average 39 | . 55 6 Influence Increases 470 | . 399 71 Destroy 0b10 Robot/C 360 | . 300 60 Destroy Leader 90 | . 80 10 Successful Hack 19 | . 19 . Destroy Structure 1 | . . 1 Influence Decreases 467 | . 393 74 Entered New Map 5 | . . 5 Time Decay 412 | . 353 59 Lost Part 50 | . 40 10 Squads Dispatched 5 | . 5 . Investigation 2 | . 2 . Extermination . | . . . Reinforcement 3 | . 3 . Assault . | . . . Garrison . | . . . Intercept . | . . . Searches Triggered . | . . . Construction Impeded . | . . . Haulers Reinforced . | . . . Active Scanning Responses . | . . . Cargo Convoy Interrupts . | . . . Stealth | -11 -10 -10 --------- Run | Yrd Mat Min Distress Signals 2 | . 2 . Communications Jammed . | . . . Distress Signals . | . . . Times Spotted 34 | . 30 4 Peak Tracking Total 7 | . 7 2 Tactical Retreats . | . . . Traps | -11 -10 -10 ------- Run | Yrd Mat Min Traps Triggered 4 | . 4 . Indirectly . | . . . Trap Hack Attempts . | . . . Triggered . | . . . Disarmed . | . . . Reprogrammed . | . . . Reused . | . . . Traps Extracted . | . . . Installed . | . . . Triggered . | . . . Machines | -11 -10 -10 ---------- Run | Yrd Mat Min Machines Disabled . | . . . Max in Single Turn . | . . . Machines Repaired . | . . . Machines Dismantled . | . . . Machines Sabotaged . | . . . Overloaded Fab Kills . | . . . Hacking | -11 -10 -10 --------- Run | Yrd Mat Min Machines Accessed 6 | . 6 . Terminals 5 | . 5 . Fabricators . | . . . Repair Stations . | . . . Recycling Units 1 | . 1 . Scanalyzers . | . . . Garrison Access . | . . . Total Hacks 15 | . 15 . Successful 7 | . 7 . Failed 8 | . 8 . Catastrophic . | . . . Database Lockouts . | . . . Manual . | . . . Terminals 13 | . 13 . Fabricators . | . . . Repair Stations . | . . . Recycling Units 2 | . 2 . Scanalyzers . | . . . Garrison Access . | . . . Terminal Hacks 6 | . 6 . Record 1 | . 1 . Locate Traps 2 | . 2 . Transport Status 1 | . 1 . Reinforcement Status 1 | . 1 . Zone Layout 1 | . 1 . Fabricator Hacks . | . . . Repair Station Hacks . | . . . Recycling Unit Hacks 1 | . 1 . Retrieve Components 1 | . 1 . Scanalyzer . | . . . Garrison Access Hacks . | . . . Unauthorized Hacks . | . . . Terminals . | . . . Fabricators . | . . . Repair Stations . | . . . Recycling Units . | . . . Scanalyzers . | . . . Garrison Access . | . . . Data Cores Recovered . | . . . Used . | . . . Hacking Detections 4 | . 4 . Full Trace Events . | . . . Feedback Events . | . . . Feedback Blocked . | . . . Robot Schematics Acquired . | . . . Robots Built . | . . . Authchips . | . . . Time . | . . . Total Robot Build Rating . | . . . Part Schematics Acquired . | . . . Parts Built . | . . . Authchips . | . . . Time . | . . . Total Part Build Rating . | . . . Part Studies Acquired . | . . . Parts Repaired . | . . . Time . | . . . Parts Recycled . | . . . Recycled Matter . | . . . Retrieved Matter . | . . . Retrieved Components 2 | . 2 . Parts Scanalyzed . | . . . Part Schematics Acquired . | . . . Parts Damaged . | . . . Bothacking | -11 -10 -10 ------------ Run | Yrd Mat Min Used RIF Installer . | . . . Robots Hacked . | . . . Non-combat . | . . . Combat . | . . . Robot Hacks Applied . | . . . Relay Couplers Released . | . . . Fabnet Peak Effective % . | . . . Robots Rewired . | . . . Allies Hacked . | . . . Hacks Repelled . | . . . Allies | -11 -10 -10 -------- Run | Yrd Mat Min Total Allies . | . . . Largest Group . | . . . Highest-Rated Group . | . . . Highest-Rated Ally . | . . . Total Orders . | . . . Ally Attacks . | . . . Total Damage . | . . . Kills . | . . . Allies Corrupted . | . . . Allies Melted . | . . . Intel | -11 -10 -10 ------- Run | Yrd Mat Min Active Infowar (turns) . | . . . Robot Analysis Total . | . . . Derelict Logs Recovered 1 | . . 1 Drone Launches . | . . . Drone Recoveries . | . . . Exploration | -11 -10 -10 ------------- Run | Yrd Mat Min Turns Passed 1442 | 51 980 411 Spaces Moved 906 | 40 645 221 Core 6 | 6 . . Treads 221 | . . 221 Legs 466 | . 466 . Wheels 213 | 34 179 . Hover . | . . . Flight . | . . . Fastest Speed 50 | 50 90 160 Average Speed 122 | 84 111 160 Slowest Speed 190 | 90 190 160 Overloaded Moves . | . . . Propulsion Burnouts . | . . . Robots Hopped . | . . . Potential Cave-ins . | . . . Cave-ins Triggered . | . . . Exploration Rate (%) 48 | 3 90 51 Regions Visited 2 Branch Regions 1 Pre-discovered Areas . | . . . Known Exits Taken . | . . . Unknown Exits Taken 2 | 1 1 . Scrap Searched . | . . . Spaces Dug . | . . . Terrain Destroyed 1 | . . 1 Melee . | . . . Projectile 1 | . . 1 AOE . | . . . Terrain Rammed . | . . . Walls Destroyed . | . . . Machines Disabled . | . . . Actions | -11 -10 -10 --------- Run | Yrd Mat Min Total 1117 | 57 805 255 Wait 59 | . 51 8 Move 904 | 39 644 221 Hop . | . . . Pick Up 31 | 12 15 4 Fast Attach 1 | . . 1 Attach 13 | 6 5 2 Detach 1 | . 1 . Swap 12 | . 9 3 Drop 12 | . 9 3 Fire 78 | . 65 13 Melee . | . . . Ram 2 | . 2 . Kick 4 | . 4 . Crush . | . . . Escape Stasis . | . . . Rewire . | . . . Trap . | . . . Miscellaneous . | . . . Route ------- -11/Scrapyard -10/Materials (discovered 5 exits: [*Mat x3] / [*Min] / [*Sub]) -10/Mines (discovered 1 exit: [*Mat]) History --------- Turn | Location | Event 28 | -11/Scrapyard | Discovered new exit (range 14) 52 | -11/Scrapyard | Entered Materials 147 | -10/Materials | Discovered new exit (range 10) 167 | -10/Materials | Discovered new exit (range 8) 300 | -10/Materials | Build established: Mutant 399 | -10/Materials | Core integrity fell below 50% 678 | -10/Materials | Discovered new exit (range 16) 872 | -10/Materials | Discovered new exit (range 7) 932 | -10/Materials | Discovered new exit (range 9) 1032 | -10/Materials | Entered Mines 1116 | -10/Mines | YI-UF0 nonchalantly dropped a Grenade Launcher on the ground 1241 | -10/Mines | Discovered new exit (range 12) 1356 | -10/Mines | A weapon hastily lodged in a ceiling crevice suddenly fell to the ground 1435 | -10/Mines | Core integrity fell below 20% 1443 | -10/Mines | Destroyed by Y-45 Defender with Heavy Assault Rifle Last Messages --------------- 01274_ Critical hit (Burn: +37). 01281_ G-47 Trooper destroyed. 01284_ Acquired 38 matter. 01287_ Acquired 35 matter. 01293_ Acquired Ion Engine. 01295_ Dropped Aluminum Leg. 01297_ Acquired Aluminum Leg. 01300_ Dropped Aluminum Leg. 01300_ Acquired Sml. Laser. 01301_ Acquired 10 matter. 01317_ BZSQELBAGT7ECN SD /UIQC&R0HACMU|G 0K 01322_ R-06 Scavenger collects Aluminum Leg. 01356_ A Slug Cannon has been hastily shoved under some rubble with a note attached: "It's not as slow as it sounds." 01359_ Dropped Hover Unit. 01359_ Acquired Slug Cannon. 01427_ Slug penetrates Y-45 Defender. 01430_ Y-45 Defender destroyed. 01440_ Assault Rifle destroyed. Map ----- +----------------------------------------------------+ | | | | | | | | | ??????????????????????????????? | | ??????????????????????????????? | | ??????????????????????????????? | | ??????????????????????????????? | | ??????????????????????????????? | | ??????????????????????????????? | | ????????#####?????????????????? | | ???????## ##????????????????? | | ???????# #????????????????? | | ??###### #????????????????? | | ??# #?????????????????? | | ### #### ##?????????????????? | | #??# ##?????????????????? | | ####??# = ##????????????????? | | #?????# #???????######???? | | ##????## #?#######"!!"#???? | | #?????### ### ##""!!""???? | | #???????# ## # ????? | | # #???????# ## ## % ?##?? | | # #??????## ## ####/Y## ##? | | # #?????## # #; [%= #? | | # #?????# # %*@ #? | | ##????# #? | | < #????## #? | | #????## ##### ##? | | ##????# ##???##u ##?? | | #?????# #?????# #??? | | #?????## ##?????# #??? | | #??????## ####?????# #??? | | #???????####????????# ??? | | #???????????????????# #?? | | #???????????????????## #?? | | #????????????????????## ##?? | | #?????????????????????# #??? | | %#?????????????????????# #??? | | #?????????????????????? #??? | | #?????????????????????? #??? | | ###??????????????????????###??? | | ??????????????????????????????? | | ??????????????????????????????? | | ??????????????????????????????? | | ??????????????????????????????? | | #?????????????????????????????? | | ##????????????????????????????? | | #????????????????????????????? | | #???????????????????????????? | +----------------------------------------------------+ Best States ------------- Heat Dissipation 35 Energy Generation 10 Energy Capacity 250 Matter Stores 300 Matter Capacity 300 Sight Range 16 Terrain Scan Density 10 Evasion (%) 55 Targeting Accuracy 5 Recoil Reduction 2 Item Schematics ----------------- None Robot Schematics ------------------ None Fabricated ------------ Nothing Repaired ---------- Nothing Studied --------- None Alien Tech Used ----------------- None Achievements -------------- None Challenges ------------ None Game ------ Seed DisruptorForceWartreads Manual? 0 Play Time 00:13:01 Cumulative 122.3 hours Start 2026.07.12 @ 11:47:12 End 2026.07.12 @ 11:58:01 Sessions 1 Manual Loads 0 Difficulty Rogue Special Mode None Game No. 150 Rogue 150 Adventurer 0 Explorer 0 Win Type - Total 0 Types 0/0/0/0/0/0/0/0/0/0 Lore% 53 Gallery% 47 Achievement% 34 Wizard Run 0 Options --------- Layout 2 ASCII 0 Keyboard 0 Movement Numpad Keybinds 0 Fullscreen 1 Font 24/Smallcaps Map View 50x44 Zoom Use 0% Tactical HUD 1 Map Filters NONE Filters NONE Steam 1 RUN: 49b3082f-b035-41b6-9806-f5526a7de38e